{"text_format":"1","workbook":"xlsx","n_sheets":3,"sheets":["расчет","БМП","Заказ БМП"],"not_rendered":{"charts":0,"images":0,"macros":1,"external_links":0,"defined_names":1,"comments":2,"pivot_tables":1},"unopened":[],"bounds":{"document_bytes":16777216,"sheet_cells":100000,"rows_first":2000,"rows_last":500,"rows_between":2000,"halvings":0,"cell_chars":16384,"cell_head_chars":4096},"cells_cut":0,"cells_raw":0,"read":"whole","date_system":"1900"}

{"sheet":"расчет","index":0,"n_rows":108,"n_cols":12,"rows_kept":108,"cut":false,"hidden":false,"merged":[]}
["Мес","Дата","Клиент","Наименование","ШТ","Тип операции","Площадка","ТМ","Артикул","Тара","Вес","Катергория"]
["январь",42370,"Брянконфи (Савельева Юля)","А-2-3-20-С   кан",-80,null,"БМП"]
["январь",42371,"Брянконфи (Савельева Юля)","А-1-1-30   Сгущенное цельное молоко с сахаром, 30 Брянконфи",-3060,null,"ЦМК","Весовое новое","А-1-1-30","КТ",30,"фффф"]
["январь",42372,"Брянконфи (Савельева Юля)","АА-1-4-1-400   Сгущенные сливки с сахаром ведро 400 гр",-24,null,"ВКК","Волоконовское молоко","АА-1-4-1-400","Ведерко",0.4,"фффф"]
["январь",42373,"Брянконфи (Савельева Юля)","4   7",-24,null,"ВКК"]
["февраль",42401,"Брянконфи (Савельева Юля)","А-2-3-20-С   кан",-80,null,"БМП"]
["февраль",42402,"Брянконфи (Савельева Юля)","А-1-1-30   Сгущенное цельное молоко с сахаром, 30 Брянконфи",-3060,null,"ЦМК","Весовое новое","А-1-1-30","КТ",30,"фффф"]
["февраль",42403,"Брянконфи (Савельева Юля)","АА-1-4-1-400   Сгущенные сливки с сахаром ведро 400 гр",-24,null,"ЦМК","Волоконовское молоко","АА-1-4-1-400","Ведерко",0.4,"фффф"]
["февраль",42404,"Брянконфи (Савельева Юля)","4   7",-24,null,"ВКК"]
["Март",42430,"Брянконфи (Савельева Юля)","А-2-3-20-С   кан",-80,null,"БМП"]
[null,null,"Брянконфи (Савельева Юля)","А-1-1-30   Сгущенное цельное молоко с сахаром, 30 Брянконфи",-3060,null,"ВКК","Весовое новое","А-1-1-30","КТ",30,"фффф"]
[null,null,"Брянконфи (Савельева Юля)","АА-1-4-1-400   Сгущенные сливки с сахаром ведро 400 гр",-24,null,"ЦМК","Волоконовское молоко","АА-1-4-1-400","Ведерко",0.4,"фффф"]
[null,null,"Брянконфи (Савельева Юля)","4   7",-24,null,"БМП"]
[null,null,"Брянконфи (Савельева Юля)","А-2-3-20-С   кан",-80,null,"ЦМК"]
[null,null,"Брянконфи (Савельева Юля)","А-1-1-30   Сгущенное цельное молоко с сахаром, 30 Брянконфи",-3060,null,"ВКК","Весовое новое","А-1-1-30","КТ",30,"фффф"]
[null,null,"Брянконфи (Савельева Юля)","АА-1-4-1-400   Сгущенные сливки с сахаром ведро 400 гр",-24,null,"БМП","Волоконовское молоко","АА-1-4-1-400","Ведерко",0.4,"фффф"]
[null,null,"Брянконфи (Савельева Юля)","4   7",-24,null,"БМП"]
[null,null,"Брянконфи (Савельева Юля)","А-2-3-20-С   кан",-80]
[null,null,"Брянконфи (Савельева Юля)","А-1-1-30   Сгущенное цельное молоко с сахаром, 30 Брянконфи",-3060,null,null,"Весовое новое","А-1-1-30","КТ",30,"фффф"]
[null,null,"Брянконфи (Савельева Юля)","АА-1-4-1-400   Сгущенные сливки с сахаром ведро 400 гр",-24,null,null,"Волоконовское молоко","АА-1-4-1-400","Ведерко",0.4,"фффф"]
[null,null,"Брянконфи (Савельева Юля)","А-2-3-20-С   кан",-80]
[null,null,"Брянконфи (Савельева Юля)","А-1-1-30   Сгущенное цельное молоко с сахаром, 30 Брянконфи",-3060,null,null,"Весовое новое","А-1-1-30","КТ",30,"фффф"]
[null,null,"Брянконфи (Савельева Юля)","АА-1-4-1-400   Сгущенные сливки с сахаром ведро 400 гр",-24,null,null,"Волоконовское молоко","АА-1-4-1-400","Ведерко",0.4,"фффф"]
[null,null,"Брянконфи (Савельева Юля)","А-2-3-20-С   кан",-80]
[null,null,"Брянконфи (Савельева Юля)","А-1-1-30   Сгущенное цельное молоко с сахаром, 30 Брянконфи",-3060,null,null,"Весовое новое","А-1-1-30","КТ",30,"фффф"]
[null,null,"Брянконфи (Савельева Юля)","АА-1-4-1-400   Сгущенные сливки с сахаром ведро 400 гр",-24,null,null,"Волоконовское молоко","АА-1-4-1-400","Ведерко",0.4,"фффф"]
[null,null,"Брянконфи (Савельева Юля)","А-2-3-20-С   кан",-80]
[null,null,"Брянконфи (Савельева Юля)","А-1-1-30   Сгущенное цельное молоко с сахаром, 30 Брянконфи",-3060,null,null,"Весовое новое","А-1-1-30","КТ",30,"фффф"]
[null,null,"Брянконфи (Савельева Юля)","АА-1-4-1-400   Сгущенные сливки с сахаром ведро 400 гр",-24,null,null,"Волоконовское молоко","АА-1-4-1-400","Ведерко",0.4,"фффф"]
[null,null,"Брянконфи (Савельева Юля)","А-2-3-20-С   кан",-80]
[null,null,"Брянконфи (Савельева Юля)","А-1-1-30   Сгущенное цельное молоко с сахаром, 30 Брянконфи",-3060,null,null,"Весовое новое","А-1-1-30","КТ",30,"фффф"]
[null,null,"Брянконфи (Савельева Юля)","АА-1-4-1-400   Сгущенные сливки с сахаром ведро 400 гр",-24,null,null,"Волоконовское молоко","АА-1-4-1-400","Ведерко",0.4,"фффф"]
[null,null,"Брянконфи (Савельева Юля)","А-2-3-20-С   кан",-80]
[null,null,"Брянконфи (Савельева Юля)","А-1-1-30   Сгущенное цельное молоко с сахаром, 30 Брянконфи",-3060,null,null,"Весовое новое","А-1-1-30","КТ",30,"фффф"]
[null,null,"Брянконфи (Савельева Юля)","АА-1-4-1-400   Сгущенные сливки с сахаром ведро 400 гр",-24,null,null,"Волоконовское молоко","АА-1-4-1-400","Ведерко",0.4,"фффф"]
[null,null,"Брянконфи (Савельева Юля)","А-2-3-20-С   кан",-80]
[null,null,"Брянконфи (Савельева Юля)","А-1-1-30   Сгущенное цельное молоко с сахаром, 30 Брянконфи",-3060,null,null,"Весовое новое","А-1-1-30","КТ",30,"фффф"]
[null,null,"Брянконфи (Савельева Юля)","АА-1-4-1-400   Сгущенные сливки с сахаром ведро 400 гр",-24,null,null,"Волоконовское молоко","АА-1-4-1-400","Ведерко",0.4,"фффф"]
[null,null,"Брянконфи (Савельева Юля)","А-2-3-20-С   кан",-80]
[null,null,"Брянконфи (Савельева Юля)","А-1-1-30   Сгущенное цельное молоко с сахаром, 30 Брянконфи",-3060,null,null,"Весовое новое","А-1-1-30","КТ",30,"фффф"]
[null,null,"Брянконфи (Савельева Юля)","АА-1-4-1-400   Сгущенные сливки с сахаром ведро 400 гр",-24,null,null,"Волоконовское молоко","АА-1-4-1-400","Ведерко",0.4,"фффф"]
[null,null,"Брянконфи (Савельева Юля)","А-2-3-20-С   кан",-80]
[null,null,"Брянконфи (Савельева Юля)","А-1-1-30   Сгущенное цельное молоко с сахаром, 30 Брянконфи",-3060,null,null,"Весовое новое","А-1-1-30","КТ",30,"фффф"]
[null,null,"Брянконфи (Савельева Юля)","АА-1-4-1-400   Сгущенные сливки с сахаром ведро 400 гр",-24,null,null,"Волоконовское молоко","АА-1-4-1-400","Ведерко",0.4,"фффф"]
[null,null,"Брянконфи (Савельева Юля)","А-2-3-20-С   кан",-80]
[null,null,"Брянконфи (Савельева Юля)","А-1-1-30   Сгущенное цельное молоко с сахаром, 30 Брянконфи",-3060,null,null,"Весовое новое","А-1-1-30","КТ",30,"фффф"]
[null,null,"Брянконфи (Савельева Юля)","АА-1-4-1-400   Сгущенные сливки с сахаром ведро 400 гр",-24,null,null,"Волоконовское молоко","АА-1-4-1-400","Ведерко",0.4,"фффф"]
[null,null,"Брянконфи (Савельева Юля)","А-2-3-20-С   кан",-80]
[null,null,"Брянконфи (Савельева Юля)","А-1-1-30   Сгущенное цельное молоко с сахаром, 30 Брянконфи",-3060,null,null,"Весовое новое","А-1-1-30","КТ",30,"фффф"]
[null,null,"Брянконфи (Савельева Юля)","АА-1-4-1-400   Сгущенные сливки с сахаром ведро 400 гр",-24,null,null,"Волоконовское молоко","АА-1-4-1-400","Ведерко",0.4,"фффф"]
[null,null,"Брянконфи (Савельева Юля)","А-2-3-20-С   кан",-80]
[null,null,"Брянконфи (Савельева Юля)","А-1-1-30   Сгущенное цельное молоко с сахаром, 30 Брянконфи",-3060,null,null,"Весовое новое","А-1-1-30","КТ",30,"фффф"]
[null,null,"Брянконфи (Савельева Юля)","АА-1-4-1-400   Сгущенные сливки с сахаром ведро 400 гр",-24,null,null,"Волоконовское молоко","АА-1-4-1-400","Ведерко",0.4,"фффф"]
[null,null,"Брянконфи (Савельева Юля)","А-2-3-20-С   кан",-80]
[null,null,"Брянконфи (Савельева Юля)","А-1-1-30   Сгущенное цельное молоко с сахаром, 30 Брянконфи",-3060,null,null,"Весовое новое","А-1-1-30","КТ",30,"фффф"]
[null,null,"Брянконфи (Савельева Юля)","АА-1-4-1-400   Сгущенные сливки с сахаром ведро 400 гр",-24,null,null,"Волоконовское молоко","АА-1-4-1-400","Ведерко",0.4,"фффф"]
[null,null,"Брянконфи (Савельева Юля)","А-2-3-20-С   кан",-80]
[null,null,"Брянконфи (Савельева Юля)","А-1-1-30   Сгущенное цельное молоко с сахаром, 30 Брянконфи",-3060,null,null,"Весовое новое","А-1-1-30","КТ",30,"фффф"]
[null,null,"Брянконфи (Савельева Юля)","АА-1-4-1-400   Сгущенные сливки с сахаром ведро 400 гр",-24,null,null,"Волоконовское молоко","АА-1-4-1-400","Ведерко",0.4,"фффф"]
[null,null,"Брянконфи (Савельева Юля)","А-2-3-20-С   кан",-80]
[null,null,"Брянконфи (Савельева Юля)","А-1-1-30   Сгущенное цельное молоко с сахаром, 30 Брянконфи",-3060,null,null,"Весовое новое","А-1-1-30","КТ",30,"фффф"]
[null,null,"Брянконфи (Савельева Юля)","АА-1-4-1-400   Сгущенные сливки с сахаром ведро 400 гр",-24,null,null,"Волоконовское молоко","АА-1-4-1-400","Ведерко",0.4,"фффф"]
[null,null,"Брянконфи (Савельева Юля)","А-2-3-20-С   кан",-80]
[null,null,"Брянконфи (Савельева Юля)","А-1-1-30   Сгущенное цельное молоко с сахаром, 30 Брянконфи",-3060,null,null,"Весовое новое","А-1-1-30","КТ",30,"фффф"]
[null,null,"Брянконфи (Савельева Юля)","АА-1-4-1-400   Сгущенные сливки с сахаром ведро 400 гр",-24,null,null,"Волоконовское молоко","АА-1-4-1-400","Ведерко",0.4,"фффф"]
[null,null,"Брянконфи (Савельева Юля)","А-2-3-20-С   кан",-80]
[null,null,"Брянконфи (Савельева Юля)","А-1-1-30   Сгущенное цельное молоко с сахаром, 30 Брянконфи",-3060,null,null,"Весовое новое","А-1-1-30","КТ",30,"фффф"]
[null,null,"Брянконфи (Савельева Юля)","АА-1-4-1-400   Сгущенные сливки с сахаром ведро 400 гр",-24,null,null,"Волоконовское молоко","АА-1-4-1-400","Ведерко",0.4,"фффф"]
[null,null,"Брянконфи (Савельева Юля)","А-2-3-20-С   кан",-80]
[null,null,"Брянконфи (Савельева Юля)","А-1-1-30   Сгущенное цельное молоко с сахаром, 30 Брянконфи",-3060,null,null,"Весовое новое","А-1-1-30","КТ",30,"фффф"]
[null,null,"Брянконфи (Савельева Юля)","АА-1-4-1-400   Сгущенные сливки с сахаром ведро 400 гр",-24,null,null,"Волоконовское молоко","АА-1-4-1-400","Ведерко",0.4,"фффф"]
[null,null,"Брянконфи (Савельева Юля)","А-2-3-20-С   кан",-80]
[null,null,"Брянконфи (Савельева Юля)","А-1-1-30   Сгущенное цельное молоко с сахаром, 30 Брянконфи",-3060,null,null,"Весовое новое","А-1-1-30","КТ",30,"фффф"]
[null,null,"Брянконфи (Савельева Юля)","АА-1-4-1-400   Сгущенные сливки с сахаром ведро 400 гр",-24,null,null,"Волоконовское молоко","АА-1-4-1-400","Ведерко",0.4,"фффф"]
[null,null,"Брянконфи (Савельева Юля)","А-2-3-20-С   кан",-80]
[null,null,"Брянконфи (Савельева Юля)","А-1-1-30   Сгущенное цельное молоко с сахаром, 30 Брянконфи",-3060,null,null,"Весовое новое","А-1-1-30","КТ",30,"фффф"]
[null,null,"Брянконфи (Савельева Юля)","АА-1-4-1-400   Сгущенные сливки с сахаром ведро 400 гр",-24,null,null,"Волоконовское молоко","АА-1-4-1-400","Ведерко",0.4,"фффф"]
[null,null,"Брянконфи (Савельева Юля)","А-2-3-20-С   кан",-80]
[null,null,"Брянконфи (Савельева Юля)","А-1-1-30   Сгущенное цельное молоко с сахаром, 30 Брянконфи",-3060,null,null,"Весовое новое","А-1-1-30","КТ",30,"фффф"]
[null,null,"Брянконфи (Савельева Юля)","АА-1-4-1-400   Сгущенные сливки с сахаром ведро 400 гр",-24,null,null,"Волоконовское молоко","АА-1-4-1-400","Ведерко",0.4,"фффф"]
[null,null,"Брянконфи (Савельева Юля)","А-2-3-20-С   кан",-80]
[null,null,"Брянконфи (Савельева Юля)","А-1-1-30   Сгущенное цельное молоко с сахаром, 30 Брянконфи",-3060,null,null,"Весовое новое","А-1-1-30","КТ",30,"фффф"]
[null,null,"Брянконфи (Савельева Юля)","АА-1-4-1-400   Сгущенные сливки с сахаром ведро 400 гр",-24,null,null,"Волоконовское молоко","АА-1-4-1-400","Ведерко",0.4,"фффф"]
[null,null,"Брянконфи (Савельева Юля)","А-2-3-20-С   кан",-80]
[null,null,"Брянконфи (Савельева Юля)","А-1-1-30   Сгущенное цельное молоко с сахаром, 30 Брянконфи",-3060,null,null,"Весовое новое","А-1-1-30","КТ",30,"фффф"]
[null,null,"Брянконфи (Савельева Юля)","АА-1-4-1-400   Сгущенные сливки с сахаром ведро 400 гр",-24,null,null,"Волоконовское молоко","АА-1-4-1-400","Ведерко",0.4,"фффф"]
[null,null,"Брянконфи (Савельева Юля)","А-2-3-20-С   кан",-80]
[null,null,"Брянконфи (Савельева Юля)","А-1-1-30   Сгущенное цельное молоко с сахаром, 30 Брянконфи",-3060,null,null,"Весовое новое","А-1-1-30","КТ",30,"фффф"]
[null,null,"Брянконфи (Савельева Юля)","АА-1-4-1-400   Сгущенные сливки с сахаром ведро 400 гр",-24,null,null,"Волоконовское молоко","АА-1-4-1-400","Ведерко",0.4,"фффф"]
[null,null,"Брянконфи (Савельева Юля)","А-2-3-20-С   кан",-80]
[null,null,"Брянконфи (Савельева Юля)","А-1-1-30   Сгущенное цельное молоко с сахаром, 30 Брянконфи",-3060,null,null,"Весовое новое","А-1-1-30","КТ",30,"фффф"]
[null,null,"Брянконфи (Савельева Юля)","АА-1-4-1-400   Сгущенные сливки с сахаром ведро 400 гр",-24,null,null,"Волоконовское молоко","АА-1-4-1-400","Ведерко",0.4,"фффф"]
[null,null,"Брянконфи (Савельева Юля)","А-2-3-20-С   кан",-80]
[null,null,"Брянконфи (Савельева Юля)","А-1-1-30   Сгущенное цельное молоко с сахаром, 30 Брянконфи",-3060,null,null,"Весовое новое","А-1-1-30","КТ",30,"фффф"]
[null,null,"Брянконфи (Савельева Юля)","АА-1-4-1-400   Сгущенные сливки с сахаром ведро 400 гр",-24,null,null,"Волоконовское молоко","АА-1-4-1-400","Ведерко",0.4,"фффф"]
[null,null,"Брянконфи (Савельева Юля)","А-2-3-20-С   кан",-80]
[null,null,"Брянконфи (Савельева Юля)","А-1-1-30   Сгущенное цельное молоко с сахаром, 30 Брянконфи",-3060,null,null,"Весовое новое","А-1-1-30","КТ",30,"фффф"]
[null,null,"Брянконфи (Савельева Юля)","АА-1-4-1-400   Сгущенные сливки с сахаром ведро 400 гр",-24,null,null,"Волоконовское молоко","АА-1-4-1-400","Ведерко",0.4,"фффф"]
[null,null,"Брянконфи (Савельева Юля)","А-2-3-20-С   кан",-80]
[null,null,"Брянконфи (Савельева Юля)","А-1-1-30   Сгущенное цельное молоко с сахаром, 30 Брянконфи",-3060,null,null,"Весовое новое","А-1-1-30","КТ",30,"фффф"]
[null,null,"Брянконфи (Савельева Юля)","АА-1-4-1-400   Сгущенные сливки с сахаром ведро 400 гр",-24,null,null,"Волоконовское молоко","АА-1-4-1-400","Ведерко",0.4,"фффф"]
[null,null,"Брянконфи (Савельева Юля)","А-2-3-20-С   кан",-80]
[null,null,"Брянконфи (Савельева Юля)","А-1-1-30   Сгущенное цельное молоко с сахаром, 30 Брянконфи",-3060,null,null,"Весовое новое","А-1-1-30","КТ",30,"фффф"]
[null,null,"Брянконфи (Савельева Юля)","АА-1-4-1-400   Сгущенные сливки с сахаром ведро 400 гр",-24,null,null,"Волоконовское молоко","АА-1-4-1-400","Ведерко",0.4,"фффф"]
[null,null,"Брянконфи (Савельева Юля)","А-2-3-20-С   кан",-80]
[null,null,"Брянконфи (Савельева Юля)","А-1-1-30   Сгущенное цельное молоко с сахаром, 30 Брянконфи",-3060,null,null,"Весовое новое","А-1-1-30","КТ",30,"фффф"]
[null,null,"Брянконфи (Савельева Юля)","АА-1-4-1-400   Сгущенные сливки с сахаром ведро 400 гр",-24,null,null,"Волоконовское молоко","АА-1-4-1-400","Ведерко",0.4,"фффф"]
[null,null,null,"   Сгущенка с сахаром, 500 гр 5 баллов Ф12",null,null,null,"5 Баллов",null,"ПЭТ",0.5]

{"sheet":"БМП","index":1,"n_rows":15,"n_cols":11,"rows_kept":15,"cut":false,"hidden":false,"merged":[[0,8,1,8],[0,9,1,9]]}
["Сумма по полю ШТ",null,null,null,null,"Площадка",null,null,"Кол-во по заказам","Свободный остаток"]
["ТМ","Наименование","Артикул","Тара","Вес","БМП","ЦМК","Общий итог"]
["Весовое новое","А-1-1-30   Сгущенное цельное молоко с сахаром, 30 Брянконфи","А-1-1-30","КТ",30,null,-6120,-6120,1000,{"$f":"H3-I3","v":-7120}]
["Волоконовское молоко","АА-1-4-1-400   Сгущенные сливки с сахаром ведро 400 гр","АА-1-4-1-400","Ведерко",0.4,-24,-48,-72,100,{"$f":"H4-I4","v":-172},2000]
["(пусто)","4   7","(пусто)","(пусто)","(пусто)",-48,null,-48,100,-148]
[null,"А-2-3-20-С   кан","(пусто)","(пусто)","(пусто)",-240,-80,-320,1000,-1320]
[null,null,null,null,null,null,null,null,null,0]
[null,null,null,null,null,null,null,null,null,0]
[null,null,null,null,null,null,null,null,null,0]
[null,null,null,null,null,null,null,null,null,0]
[null,null,null,null,null,null,null,null,null,0]
[null,null,null,null,null,null,null,null,null,0]
[null,null,null,null,null,null,null,null,null,0]
[null,null,null,null,null,null,null,null,null,0]
[null,null,null,null,null,null,null,null,null,0]

{"sheet":"Заказ БМП","index":2,"n_rows":21,"n_cols":21,"rows_kept":21,"cut":false,"hidden":false,"merged":[[0,4,0,15]]}
[]
[null,"Менеджер"]
[null,"Дата заявки","2016-06-23"]
[null,"Наименование организации","ИВАНОВ"]
[null,"Договор (БМП, ВКК, Город-М, Сорренто)"]
[null,"Тип операции (продажа, образцы, бонус)"]
[null,"Дата и время передачи товара (желаемое)"]
[null,"Место передачи товара "]
[null,"Вид отгрузки (самовывоз, доставка)"]
[null,"Вид транспорта"]
[null,"Склад отгрузки"]
[null,"Точный  полный адрес поставки"]
[null,"Условия оплаты (предоплата, отсрочка)"]
[]
["Примечание:"]
[]
[null,"ОАО Белгородские молочные продукты","Внутренний код","Вид  упаковки","Вес, гр ","Кол-во шт в упаковке","Коробок в паллете","Др Цена","Акция","Цена по Прайсу","Количество в штуках","Сумма","Количество коробов","Количество паллет","Масса брутто, кг","Вес брутто/ед, кг","Паллет"]
[]
[null,"СЛИВКИ сгущенные с сахаром ТМ Волоконовское, Отборные, ГОСТ 31688-2012","АА-1-4-1-400","ведро",400,12,120,null,null,null,2000,{"$f":"IF(I19=0,J19*K19,I19*K19)","v":0},{"$f":"K19/F19","v":166.66666666666666},{"$f":"M19/G19","v":1.3888888888888888},{"$f":"K19*P19","v":870},0.435]
["01-1","Цельное сгущенное молоко с сахаром ГОСТ 31688-2012","АА 1-1-01","ж/б easy open",370,45,45,null,null,null,null,0,0,0,0,0.44,{"$f":"K20/(F20*G20)","v":0},{"$f":"(U20-S20)/S20","v":{"$error":"#REF!"}},null,null,{"$f":"#REF!-#REF!-#REF!","v":{"$error":"#REF!"}}]
["1-1","Цельное сгущенное молоко с сахаром ГОСТ 31688-2012","АА 1-1-1","ж/б",370,45,45,null,null,null,null,0,0,0,0,0.44,0]